bitfinex/quotes_ETHUSD_20250608
["timestamp","ask_amount","ask_price","bid_price","bid_amount"]
[1749421318903,8.27554264,2526.8,2526.7,3.95764336]
[1749421319106,8.27553649,2526.8,2526.7,3.95764336]
[1749421319300,7.90676501,2526.8,2526.7,3.95764336]
[1749421319700,7.90576501,2526.8,2526.7,4.71404336]
[1749421319951,7.90576501,2526.8,2526.7,5.58199096]
[1749421320353,8.27456208,2526.8,2526.7,5.58199096]
[1749421320637,8.27456095,2526.8,2526.7,5.58199096]
[1749421320813,8.2745609,2526.8,2526.7,5.58199096]
[1749421321019,7.90576501,2526.8,2526.7,5.58199096]
[1749421321818,8.27455851,2526.8,2526.7,5.58199096]
[1749421322643,8.27456189,2526.8,2526.7,5.58199096]
[1749421322838,7.90576501,2526.8,2526.7,5.58199096]
[1749421323418,8.27455879,2526.8,2526.7,5.58199096]
[1749421324148,8.27470918,2526.8,2526.7,5.58199096]
[1749421324318,8.27470918,2526.8,2526.7,4.82559096]
[1749421324521,7.90576501,2526.8,2526.7,4.82559096]
[1749421324733,8.27471391,2526.8,2526.7,4.82559096]
[1749421325060,7.90576501,2526.8,2526.5,4.74735232]
[1749421325355,0.94176501,2526.7,2526.1,0.7828]
[1749421325523,0.8121,2526.5,2525.9,0.7605]
[1749421325710,7.90076501,2526.4,2526.1,3.95856156]
[1749421325913,1.31064717,2526.3,2526.1,3.95856156]
[1749421326138,0.36888216,2526.3,2526.1,3.95856156]
[1749421326449,0.94353623,2526.2,2526.0,3.95876265]
[1749421326739,6.959,2526.4,2526.0,3.95882818]
[1749421326927,6.959,2526.4,2525.9,3.95895718]
[1749421326928,1.31182453,2526.3,2525.9,3.95895718]
[1749421327110,0.94350605,2526.2,2525.9,3.95895724]
[1749421327311,0.94350605,2526.1,2526.0,3.95882818]
[1749421327743,1.31174208,2526.1,2526.0,3.95882818]
[1749421328105,0.94350605,2526.1,2526.0,3.95882818]
[1749421329166,0.94350605,2526.1,2525.9,3.95890505]
[1749421329366,6.957,2526.0,2525.9,3.95890505]
[1749421331862,6.955,2526.0,2525.9,4.82683918]
[1749421334127,0.8121,2526.5,2526.2,3.95842354]
[1749421334443,9.86605661,2526.4,2526.3,3.95835807]
[1749421335339,0.94105661,2526.4,2526.3,3.95835807]
[1749421335542,8.924,2526.4,2526.3,3.95835807]
[1749421335729,0.94102041,2526.5,2526.4,3.95819969]
[1749421335934,6.953,2526.5,2526.4,3.95819969]
[1749421338666,1.971,2526.7,2526.6,3.95788807]
[1749421338865,9.86316013,2526.7,2526.6,3.95788807]
[1749421339168,9.86316013,2526.7,2526.6,8.00153015]
[1749421339465,17.105,2526.9,2526.8,3.95757479]
[1749421339667,26.96728881,2526.9,2526.7,3.95769664]
[1749421339965,26.026,2526.9,2526.7,3.95769664]
[1749421340366,17.105,2526.9,2526.8,3.95757479]
[1749421340536,24.054,2526.9,2526.8,3.95757479]
[1749421342677,17.105,2526.9,2526.8,3.95757479]
[1749421342975,24.052,2526.9,2526.8,3.95757479]
[1749421343650,6.946,2526.9,2526.8,3.95757479]
[1749421343855,6.946,2526.9,2526.8,5.24076931]
[1749421344976,1.971,2527.2,2527.1,3.95710498]
[1749421345178,9.85730492,2527.2,2527.1,3.95710498]
[1749421347942,0.94130492,2527.2,2527.1,3.95710498]
[1749421348144,1.971,2527.3,2527.2,3.9569484]
[1749421348360,2.91183998,2527.3,2527.2,3.9569484]
[1749421348557,9.85383998,2527.3,2527.2,5.23405795]
[1749421348757,7.88283998,2527.3,2527.2,9.27770003]
[1749421349063,6.942,2527.3,2527.2,5.23405795]
[1749421349248,6.942,2527.3,2527.2,3.9569484]
[1749421350876,6.94,2527.3,2527.2,3.95690755]
[1749421351767,1.971,2527.7,2527.4,3.95660511]
[1749421351969,7.87928928,2527.6,2527.4,3.95660511]
[1749421352169,0.94028928,2527.5,2527.4,3.95660511]
[1749421352472,6.939,2527.6,2527.4,3.95660511]
[1749421352780,6.939,2527.6,2527.4,3.95663305]
[1749421353653,1.971,2527.7,2527.5,3.95647873]
[1749421353850,19.65700627,2527.9,2527.6,3.95629147]
[1749421354050,9.84894251,2527.8,2527.6,3.95629147]
[1749421354385,0.93994251,2527.7,2527.5,3.95639441]
[1749421354585,0.93994251,2527.6,2527.5,3.95639441]
[1749421354883,0.93994251,2527.7,2527.5,3.95639441]
[1749421355052,8.909,2527.8,2527.5,3.95639441]
[1749421355248,0.93975031,2527.7,2527.5,3.95639441]
[1749421355475,8.893,2527.6,2527.5,4.74767059]
[1749421355791,8.893,2527.6,2527.5,3.95636848]
[1749421357690,0.93963066,2527.8,2527.6,3.95631931]
[1749421357857,8.891,2527.7,2527.6,3.95631931]
[1749421358383,1.957,2527.7,2527.6,3.95631931]
[1749421358691,8.89,2527.7,2527.6,3.95631931]
[1749421362683,8.89,2527.7,2527.3,0.7567]
[1749421362853,10.63562764,2527.7,2527.4,3.95661192]
[1749421363193,9.696,2527.7,2527.4,3.95661192]
[1749421363891,8.89,2527.7,2527.5,3.95647082]
[1749421364293,8.89,2527.7,2527.6,3.9563222]
[1749421364493,9.83060719,2527.7,2527.6,3.9563222]
[1749421364993,9.83060719,2527.7,2527.5,3.95641191]
[1749421365196,8.89,2527.7,2527.5,3.95641191]
[1749421365383,0.94094716,2527.6,2527.5,3.95641191]
[1749421366700,1.76354716,2527.6,2527.4,3.95648875]
[1749421366890,0.8226,2527.6,2527.4,3.95648875]
[1749421367310,8.89,2527.7,2527.5,3.95647247]
[1749421367630,0.94147776,2527.6,2527.5,3.95647247]
[1749421368597,0.94183232,2527.6,2527.5,3.95647247]
[1749421372009,1.31019181,2527.6,2527.5,3.95647247]
[1749421372219,0.94183232,2527.6,2527.5,3.95647247]
[1749421373084,1.31019171,2527.6,2527.5,3.95647247]
[1749421373380,0.94183232,2527.6,2527.5,3.95647247]
[1749421374030,0.94300333,2527.6,2527.5,3.95647247]
[1749421374380,7.86400333,2527.6,2527.5,3.95647247]
[1749421376946,8.23259948,2527.6,2527.5,3.95647247]
[1749421377093,7.86400333,2527.6,2527.5,3.95647247]
[1749421378209,8.23260223,2527.6,2527.5,3.95647247]
[1749421378424,8.22960223,2527.6,2527.5,3.95647247]
[1749421378825,8.22963186,2527.6,2527.5,3.95647247]
[1749421379046,8.22963194,2527.6,2527.5,3.95647247]
[1749421379254,8.2296303,2527.6,2527.5,3.95647247]
[1749421379453,8.22963149,2527.6,2527.5,3.95647247]
[1749421379769,8.23071065,2527.6,2527.5,3.95647247]
[1749421380259,7.86208132,2527.6,2527.5,3.95647247]
[1749421380458,8.23093716,2527.6,2527.5,3.95647247]
[1749421380827,7.86208132,2527.6,2527.5,3.95647247]
[1749421381426,8.23093789,2527.6,2527.5,3.95647247]
[1749421381632,7.86208132,2527.6,2527.5,3.95647247]
[1749421381863,8.22793803,2527.6,2527.5,3.95647247]
[1749421382047,7.85908132,2527.6,2527.5,3.95647247]
[1749421382260,8.12793794,2527.6,2527.5,3.95647247]
[1749421382688,7.75908132,2527.6,2527.5,3.95647247]
[1749421382826,8.12813135,2527.6,2527.5,3.95647247]
[1749421383023,6.915,2527.6,2527.5,3.95647247]
[1749421383541,8.46471452,2527.6,2527.5,3.95647247]
[1749421384233,8.09566359,2527.6,2527.5,3.95647247]
[1749421384953,8.46271173,2527.6,2527.5,3.95647247]
[1749421385145,0.36904814,2527.6,2527.5,3.95647247]
[1749421385346,7.28104814,2527.6,2527.5,5.23105686]
[1749421385934,7.28102874,2527.6,2527.5,5.23105686]
[1749421386271,6.912,2527.6,2527.5,3.95647247]
[1749421387054,7.2810359,2527.6,2527.5,3.95647247]
[1749421387379,1.18066359,2527.8,2527.7,3.95616568]
[1749421387592,1.18066359,2527.8,2527.7,7.99980776]
[1749421387757,1.18066359,2527.9,2527.8,3.95600917]
[1749421388085,1.18066359,2527.9,2527.8,5.90519086]
[1749421388237,1.18066359,2528.0,2527.9,3.95585268]
[1749421388435,1.18067141,2528.2,2528.1,3.95553973]
[1749421388885,1.942,2528.4,2528.3,3.95522683]
[1749421389382,1.942,2528.4,2528.2,3.95535788]
[1749421389383,3.50613404,2528.7,2528.5,3.95491398]
[1749421389591,6.909,2528.6,2528.3,3.95518426]
[1749421389740,6.909,2528.6,2528.4,3.95501816]
[1749421390227,6.909,2528.6,2528.5,3.95491398]
[1749421390878,7.27810587,2528.6,2528.4,3.95500491]
[1749421391088,6.907,2528.5,2528.4,3.95500491]
[1749421394367,7.84841876,2528.5,2528.4,3.95500491]
[1749421395782,6.907,2528.5,2528.4,3.95500491]
[1749421399213,7.84761058,2528.5,2528.2,3.95528371]
[1749421399520,0.7759,2528.8,2528.4,3.95493788]
[1749421399685,7.84058885,2528.7,2528.4,3.95495249]
[1749421399869,0.94058885,2528.6,2528.2,0.821]
[1749421400074,3.69353398,2528.5,2528.1,3.95542687]
[1749421400384,2.753,2528.5,2528.2,3.95526713]
[1749421400594,2.753,2528.5,2528.3,3.95521164]
[1749421401217,1.941,2528.5,2528.4,3.9550704]
[1749421401443,2.88154369,2528.5,2528.4,3.9550704]
[1749421405805,0.94054369,2528.5,2528.4,7.99871248]
[1749421406009,0.94054369,2528.6,2528.5,3.95491398]
[1749421406207,7.83554369,2528.6,2528.5,3.95491398]
[1749421408405,0.94054369,2528.6,2528.5,3.95491398]
[1749421408605,0.36748731,2528.9,2528.7,3.95460117]
[1749421408818,7.83425171,2528.8,2528.7,3.95460117]
[1749421409224,0.94125171,2528.8,2528.7,3.95460117]
[1749421409435,0.94125171,2528.8,2528.7,4.82421507]
[1749421409742,0.2296633,2529.0,2528.9,3.95428842]
[1749421409947,7.1216633,2529.0,2528.9,3.95428842]
[1749421410110,8.06303307,2529.0,2528.9,3.95428842]
[1749421410324,1.17103307,2529.0,2528.9,3.95428842]
[1749421410530,0.2296633,2529.0,2528.9,6.02328478]
[1749421411342,0.2296633,2529.0,2528.9,22.02328478]
[1749421414317,0.2296633,2529.0,2528.5,6.891]
[1749421414318,1.3323,2528.9,2527.2,0.18431627]
[1749421414657,0.7823,2527.8,2527.2,0.7698]
[1749421414808,0.7823,2527.8,2527.2,4.72668886]
[1749421414809,6.887,2527.7,2527.2,4.72668886]
[1749421415011,6.887,2527.7,2527.3,4.82515319]
[1749421415212,6.887,2527.7,2527.4,16.0]
[1749421415447,6.887,2527.7,2527.3,0.86837514]
[1749421415663,6.887,2527.7,2526.8,0.8312]
[1749421415664,5.44700034,2527.6,2526.8,0.8312]
[1749421415829,4.8971934,2527.5,2526.8,3.95748377]
[1749421416022,4.8971934,2527.5,2527.0,16.0]
[1749421416023,0.94011213,2527.4,2527.0,16.0]
[1749421416226,6.887,2527.3,2527.0,16.0]
[1749421416739,0.7964,2527.2,2526.4,0.8312]
[1749421417050,0.7964,2527.2,2526.6,3.9578138]
[1749421417228,0.55,2527.1,2526.4,3.95813087]
[1749421417548,0.55,2526.9,2526.3,3.95833924]
[1749421417848,0.55,2526.9,2526.1,3.95865234]
[1749421417849,0.7964,2526.7,2526.2,3.95847516]
[1749421418055,0.7964,2526.7,2525.9,16.0]
[1749421418233,0.7964,2526.7,2525.8,4.87484208]
[1749421418234,0.7964,2526.7,2526.3,16.0]
[1749421418547,0.7964,2526.7,2526.3,3.9583057]
[1749421418855,0.7964,2526.7,2526.3,3.95825277]
[1749421419350,0.7964,2526.7,2526.4,3.95816635]
[1749421420381,0.7964,2526.7,2526.2,16.0]
[1749421420588,0.7964,2526.7,2526.2,18.6089612]
[1749421420751,0.7964,2526.7,2526.4,3.95805359]
[1749421421175,0.7964,2526.7,2526.5,3.95803751]
[1749421422189,0.7964,2526.7,2526.2,18.6089612]
[1749421422190,0.7964,2526.7,2526.6,3.95788807]
[1749421438749,0.7964,2526.7,2526.5,3.95803887]
[1749421439651,0.7964,2526.7,2526.6,3.95788807]
[1749421440160,0.7964,2526.7,2526.5,3.95797538]
[1749421440523,7.587,2526.8,2526.6,3.95788807]
[1749421440858,0.7,2526.8,2526.7,3.95773142]
[1749421441059,7.58,2526.8,2526.7,3.95773142]
[1749421442567,0.7,2526.8,2526.7,3.95773142]
[1749421443363,6.88,2526.9,2526.8,3.95757479]
[1749421443872,7.81863379,2526.9,2526.8,3.95757479]
[1749421444334,7.81863379,2526.9,2526.8,5.23134912]
[1749421444780,0.93863379,2526.9,2526.8,5.23134912]
[1749421444970,7.81663379,2526.9,2526.8,5.23134912]
[1749421447265,7.81663379,2526.9,2526.8,1.27377433]
[1749421447464,7.81663379,2526.9,2526.7,3.95765617]
[1749421447666,0.93863379,2526.8,2526.7,3.95773142]
[1749421448184,0.93863379,2526.8,2526.7,7.98857523]
[1749421448674,0.93863379,2526.8,2526.7,23.98857523]
[1749421451586,6.876,2527.0,2526.9,3.95741818]
[1749421451791,7.8192281,2527.0,2526.9,11.07013512]
[1749421453002,0.9432281,2527.0,2526.9,27.85963512]
[1749421453294,8.05206429,2527.4,2527.3,3.95679183]
[1749421453459,8.99507322,2527.4,2527.3,4.35247101]
[1749421453983,8.99507322,2527.4,2527.3,3.95679183]
[1749421454237,9.36329289,2527.4,2527.3,3.95679183]
[1749421454730,9.36329828,2527.4,2527.3,3.95679183]
[1749421454885,9.36330088,2527.4,2527.3,3.95679183]
[1749421455085,8.99507322,2527.4,2527.3,3.95679183]
[1749421455387,7.81600893,2527.4,2527.3,3.95679183]
[1749421456298,8.18424106,2527.4,2527.3,3.95679183]
[1749421456693,7.81600893,2527.4,2527.3,3.95679183]
[1749421457115,7.81600893,2527.4,2527.3,4.74816422]
[1749421457947,7.81300893,2527.4,2527.3,4.74816422]
[1749421458123,7.81300893,2527.4,2527.3,5.53286422]
[1749421460023,0.94300893,2527.4,2527.3,5.53286422]
[1749421460231,1.17906429,2528.0,2527.7,3.95616568]
[1749421460450,1.17906429,2528.1,2527.9,23.98669649]
[1749421460728,6.868,2528.2,2528.0,3.9556962]
[1749421460934,0.94200782,2528.1,2528.0,19.9556962]
[1749421461086,0.94200782,2528.1,2528.0,21.21281428]
[1749421462301,6.868,2528.2,2528.1,3.95553973]
[1749421462542,7.80883563,2528.2,2528.1,3.95553973]
[1749421463043,0.94083563,2528.2,2528.1,3.95553973]
[1749421463344,7.80683563,2528.2,2528.1,3.95553973]
[1749421464242,6.866,2528.2,2528.1,3.95553973]
[1749421466627,2.28706177,2528.4,2527.5,0.8307]
[1749421466837,8.1703704,2528.3,2527.7,16.0]
[1749421467008,0.93930863,2528.2,2527.7,16.0]
[1749421467210,6.864,2528.3,2528.1,3.95542495]
[1749421467411,0.93922404,2528.2,2528.1,3.95542495]
[1749421468348,7.80222404,2528.2,2528.1,3.95542495]
[1749421468548,6.863,2528.2,2528.1,3.95542495]
[1749421468718,7.80222404,2528.2,2528.1,3.95542495]
[1749421468917,0.93922404,2528.3,2528.2,3.95538327]
[1749421469223,7.80122404,2528.3,2528.2,3.95538327]
[1749421470135,8.16830621,2528.3,2528.2,3.95538327]
[1749421470341,7.80122404,2528.3,2528.2,3.95538327]
[1749421472047,0.93922404,2528.3,2528.2,3.95538327]
[1749421472239,7.79922404,2528.3,2528.2,3.95538327]
[1749421472753,7.79922404,2528.3,2528.1,3.95553003]
[1749421472919,7.79922404,2528.3,2527.8,4.03084381]
[1749421472920,6.86,2528.3,2528.2,3.95538327]
[1749421473119,7.79950798,2528.3,2528.2,3.95538327]
[1749421474753,7.79950798,2528.3,2528.1,3.95542935]
[1749421474911,0.93950798,2528.2,2528.1,3.95542935]
[1749421480145,0.94036997,2528.2,2528.1,3.95542935]
[1749421483466,1.30802702,2528.2,2528.1,3.95542935]
[1749421483625,1.30803078,2528.2,2528.1,3.95542935]
[1749421483962,0.94036997,2528.2,2528.1,3.95542935]
[1749421484121,1.30803025,2528.2,2528.1,3.95542935]
[1749421484739,0.94036997,2528.2,2528.1,3.95542935]
[1749421485380,1.30802859,2528.2,2528.1,3.95542935]
[1749421485545,0.94036997,2528.2,2528.1,3.95542935]
[1749421486657,1.30802102,2528.2,2528.1,3.95542935]
[1749421486948,7.79236997,2528.2,2528.1,3.95542935]
[1749421487839,8.96783244,2528.2,2528.1,3.95542935]
[1749421488076,9.33585343,2528.2,2528.1,3.95542935]
[1749421488380,8.96783244,2528.2,2528.1,3.95542935]
[1749421489046,9.33586243,2528.2,2528.1,3.95542935]
[1749421489242,8.96783244,2528.2,2528.1,3.95542935]
[1749421489483,9.33585966,2528.2,2528.1,3.95542935]
[1749421489669,8.96783244,2528.2,2528.1,3.95542935]
[1749421489871,9.33657962,2528.2,2528.1,3.95542935]
[1749421490072,9.18908155,2528.2,2528.1,3.95542935]
[1749421490384,7.79236997,2528.2,2528.1,3.95542935]
[1749421490585,8.01361814,2528.2,2528.1,3.95542935]
[1749421490747,8.01361832,2528.2,2528.1,3.95542935]
[1749421491083,8.01361781,2528.2,2528.1,3.95542935]
[1749421491247,7.79236997,2528.2,2528.1,3.95542935]
[1749421491445,8.38238843,2528.2,2528.1,3.95542935]
[1749421491683,7.79236997,2528.2,2528.1,3.95542935]
[1749421491898,8.1611353,2528.2,2528.1,3.95542935]
[1749421492092,7.79236997,2528.2,2528.1,3.95542935]
[1749421492592,9.35650401,2528.2,2528.1,3.95542935]
[1749421492952,9.35650401,2528.2,2527.5,0.8307]
[1749421492953,10.89555756,2528.2,2527.5,0.8307]
[1749421493194,1.18017216,2528.0,2527.8,3.95594034]
[1749421493486,7.78836997,2527.9,2527.8,19.95594034]
[1749421493810,8.15712677,2527.9,2527.8,19.95594034]
[1749421493965,8.15712481,2527.9,2527.8,19.95594034]
[1749421494158,7.78836997,2527.9,2527.8,19.95594034]
[1749421494359,8.15712802,2527.9,2527.8,19.95594034]
[1749421494559,7.78836997,2527.9,2527.8,19.95594034]
[1749421494760,8.15712584,2527.9,2527.8,19.95594034]
[1749421494955,7.78836997,2527.9,2527.8,19.95594034]
[1749421496394,8.1571741,2527.9,2527.8,19.95594034]
[1749421496558,7.78836997,2527.9,2527.8,19.95594034]
[1749421497591,8.15717063,2527.9,2527.8,19.95594034]
[1749421497803,8.15717482,2527.9,2527.8,19.95594034]
[1749421498474,8.15711028,2527.9,2527.8,19.95594034]
[1749421498674,7.78836997,2527.9,2527.8,19.95594034]
[1749421499404,8.15711012,2527.9,2527.8,19.95594034]
[1749421499611,7.78836997,2527.9,2527.8,19.95594034]
[1749421499810,8.15711075,2527.9,2527.8,19.95594034]
[1749421499966,7.78836997,2527.9,2527.8,19.95594034]
[1749421500164,8.15710839,2527.9,2527.8,19.95594034]
[1749421500469,8.1571077,2527.9,2527.8,19.95594034]
[1749421500699,7.79192933,2527.9,2527.8,19.95594034]
[1749421500896,8.16062512,2527.9,2527.8,19.95594034]
[1749421501299,8.16056298,2527.9,2527.8,19.95594034]
[1749421501503,8.16056298,2527.9,2524.0,15.04084229]
[1749421501504,10.0857166,2527.9,2527.3,0.7858]
[1749421501797,2.49208583,2527.8,2527.7,3.95616568]
[1749421501997,3.28686197,2527.8,2527.7,3.95616568]
[1749421502301,2.12347466,2527.8,2527.7,3.95616568]
[1749421502598,2.49205603,2527.8,2527.7,3.95616568]
[1749421502797,2.12347466,2527.8,2527.7,3.95616568]
[1749421503161,2.49206189,2527.8,2527.7,3.95616568]
[1749421503367,2.12347466,2527.8,2527.7,3.95616568]
[1749421504001,2.49206146,2527.8,2527.7,3.95616568]
[1749421504184,2.49205859,2527.8,2527.7,3.95616568]
[1749421504376,2.49023658,2527.8,2527.7,3.95616568]
[1749421504577,2.49023891,2527.8,2527.7,3.95616568]
[1749421504771,2.48987823,2527.8,2527.7,3.95616568]
[1749421504986,2.12165265,2527.8,2527.7,3.95616568]
[1749421505770,2.48987542,2527.8,2527.7,3.95616568]
[1749421506364,2.48982428,2527.8,2527.7,3.95616568]
[1749421506559,2.12165265,2527.8,2527.7,3.95616568]
[1749421507389,2.48983053,2527.8,2527.7,3.95616568]
[1749421508124,2.12165265,2527.8,2527.7,3.95616568]
[1749421509524,2.48977033,2527.8,2527.7,3.95616568]
[1749421509682,0.36811768,2527.8,2527.7,3.95616568]
[1749421509867,2.4887875,2527.8,2527.7,3.95616568]
[1749421510069,2.12066982,2527.8,2527.7,3.95616568]
[1749421510280,2.12066982,2527.8,2527.6,3.95628751]
[1749421510489,0.94251992,2527.7,2527.6,3.95628751]
[1749421510682,2.10335223,2527.7,2527.3,3.95668407]
[1749421510906,0.55,2527.5,2526.8,4.70979221]
[1749421511208,2.48869051,2527.4,2527.0,3.9571799]
[1749421511414,8.14954061,2527.3,2526.9,3.95739743]
[1749421511709,0.94251992,2527.2,2527.0,3.95716028]
[1749421512015,6.839,2527.3,2527.0,3.95716028]
[1749421512312,0.94194873,2527.2,2526.9,19.95735676]
[1749421512480,0.94193637,2527.1,2527.0,3.95724257]
[1749421514080,0.8012,2527.2,2527.0,3.95724257]
[1749421516221,0.8012,2527.2,2527.1,3.95710498]
[1749421516396,8.738,2527.3,2527.1,3.95710498]
[1749421516997,0.94073314,2527.2,2527.1,3.95710498]
[1749421517315,8.738,2527.3,2527.1,3.95710498]
[1749421518399,0.94069271,2527.2,2527.1,3.95710498]
[1749421518622,0.94063672,2527.2,2527.1,3.95710498]
[1749421519306,0.94067001,2527.2,2527.1,3.95710498]
[1749421519621,8.738,2527.3,2527.1,3.95710498]
[1749421520220,0.9406602,2527.2,2527.1,3.95710498]
[1749421520518,8.738,2527.3,2527.1,3.95710498]
[1749421521838,0.94068773,2527.2,2526.9,3.95732102]
[1749421522027,8.738,2527.3,2526.7,16.0]
[1749421522200,3.9572287,2527.1,2526.7,16.0]
[1749421522523,0.55,2526.9,2526.4,3.9581202]
[1749421522680,0.55,2526.9,2526.5,3.95802042]
[1749421522885,0.94038595,2526.8,2526.3,3.95835668]
[1749421523129,6.833,2526.7,2526.4,3.95809613]
[1749421523628,6.833,2526.7,2526.4,19.95809613]
[1749421524410,6.833,2526.7,2526.4,19.95811122]
[1749421525011,6.833,2526.7,2526.0,8.81009633]
[1749421525012,8.732,2526.7,2526.0,0.8205]
[1749421525215,8.732,2526.7,2526.2,3.95843124]
[1749421525216,2.43573563,2526.6,2526.2,3.95843124]
[1749421525529,1.4959,2526.6,2526.3,3.95833572]
[1749421526169,1.4959,2526.6,2526.2,3.95851354]
[1749421526316,5.45387186,2526.6,2526.1,3.95859187]
[1749421526521,1.41856993,2526.5,2526.1,3.95859187]
[1749421526718,0.55,2526.4,2526.0,19.95875722]
[1749421526936,6.831,2526.3,2526.0,19.95875722]
[1749421528168,6.831,2526.3,2525.6,0.8319]
[1749421528169,0.7805,2526.2,2525.6,0.8319]
[1749421528362,4.73908774,2526.2,2525.7,3.95920809]
[1749421528665,1.15700877,2526.1,2525.7,3.95920809]
[1749421528818,1.15700877,2526.1,2525.5,3.95957719]
[1749421528819,1.15700877,2526.1,2525.6,3.95938815]
[1749421529023,0.55,2526.0,2525.5,16.0]
[1749421529225,6.831,2525.9,2525.6,3.95945517]
[1749421529426,6.831,2525.9,2525.7,3.95920059]
[1749421530365,6.831,2525.9,2525.6,3.95937805]
[1749421530564,6.831,2525.9,2525.7,3.9591847]
[1749421531082,6.831,2525.9,2525.6,3.95945517]
[1749421531374,6.831,2525.9,2525.7,3.95919659]
[1749421531570,0.7651,2525.8,2525.6,3.95940598]
[1749421531772,0.7651,2525.8,2525.7,3.95929841]
[1749421531929,0.7651,2525.8,2525.6,3.95943461]
[1749421532279,0.7651,2525.8,2525.3,3.959813]
[1749421532432,0.75961,2525.7,2524.9,4.03084381]
[1749421532638,0.55,2525.6,2525.2,16.0]
[1749421532853,0.7816,2525.2,2522.4,0.7773]
[1749421533068,0.7816,2525.2,2521.9,10.14259912]
[1749421533069,3.96317473,2523.3,2522.6,3.96404996]
[1749421533296,0.55,2523.1,2522.7,3.96400559]
[1749421533498,0.55,2523.1,2522.3,4.03084381]
[1749421533817,0.55,2523.1,2522.0,3.96506699]
[1749421533818,0.55,2523.1,2522.6,3.96416305]
[1749421534112,0.55,2523.1,2522.6,3.96401942]
[1749421534391,1.00945359,2523.1,2522.5,7.99506046]
[1749421534588,1.00945359,2523.1,2522.6,3.96413005]
[1749421536219,0.55,2522.9,2522.5,16.0]
[1749421536383,6.832,2522.8,2522.5,16.0]
[1749421536585,6.832,2522.8,2522.5,19.96428628]
[1749421537098,7.65161,2522.8,2522.1,0.7547]
[1749421537411,7.65161,2522.8,2522.1,3.96492912]
[1749421537716,7.65161,2522.8,2522.3,3.9645854]
[1749421538111,7.65161,2522.8,2521.9,16.0]
[1749421538112,0.55,2522.7,2521.9,3.96526428]
[1749421538313,0.55,2522.7,2521.8,12.95656364]
[1749421538314,0.55,2522.5,2521.8,12.95656364]
[1749421538519,0.55,2522.3,2522.0,3.96510705]
[1749421538727,8.735,2522.2,2521.8,16.0]
[1749421538872,3.96585863,2521.6,2521.1,0.7601]
[1749421539079,0.7711,2521.1,2520.8,0.42283333]
[1749421539314,0.55,2521.4,2520.8,0.42283333]
[1749421539315,6.908,2521.0,2520.8,0.42283333]
[1749421539473,0.7711,2521.4,2521.2,3.96636463]
[1749421539685,0.55,2521.7,2521.3,3.96617159]
[1749421540000,1.902,2521.7,2521.6,3.96573604]
[1749421540316,6.911,2522.1,2522.0,3.96500859]
[1749421540900,6.911,2522.1,2521.9,3.96515928]
[1749421541129,6.911,2522.1,2522.0,3.96510705]
[1749421543222,6.911,2522.1,2521.9,3.96526428]
[1749421543414,6.911,2522.1,2521.8,3.96539871]
[1749421543691,6.911,2522.1,2522.0,3.96510705]
[1749421544187,6.911,2522.1,2521.9,3.96524126]
[1749421545088,6.911,2522.1,2521.7,16.0]
[1749421545290,6.911,2522.1,2521.9,3.96511013]
[1749421545490,6.911,2522.1,2522.0,3.96510705]
[1749421545726,6.911,2522.1,2521.9,3.96521775]
[1749421546327,6.911,2522.1,2522.0,3.96510705]
[1749421546527,6.911,2522.1,2521.8,3.96537948]
[1749421546528,6.911,2522.1,2521.9,3.96516449]
[1749421547822,6.911,2522.1,2522.0,3.96510705]
[1749421549669,1.3691,2522.0,2521.6,3.96572631]
[1749421550264,1.3691,2522.0,2521.1,4.7784261]
[1749421550265,5.3343424,2522.0,2521.4,16.0]
[1749421550562,1.3691,2522.0,2521.6,3.96572365]
[1749421550984,1.3691,2522.0,2521.3,16.0]
[1749421551187,1.3691,2522.0,2521.6,3.96566026]
[1749421551368,3.67737462,2522.0,2521.6,3.96566026]
[1749421551569,2.75910625,2522.0,2521.6,3.96566026]
[1749421552350,2.75910625,2522.0,2521.2,3.96634685]
[1749421552351,2.75910625,2522.0,2520.6,0.7799]
[1749421552644,2.75910625,2522.0,2521.1,3.96638625]
[1749421552645,4.51581116,2521.6,2521.1,3.96638625]
[1749421552871,9.26658112,2521.5,2521.1,3.96638625]
[1749421553196,9.26658112,2521.5,2521.2,3.96632007]
[1749421553360,9.26658112,2521.5,2521.3,3.96612848]
[1749421553538,0.55,2521.6,2521.4,3.9660506]
[1749421553539,0.21973926,2521.6,2521.4,3.9660506]
[1749421553738,1.15067578,2522.3,2521.5,16.0]
[1749421553974,2.36713438,2522.4,2522.0,3.96508275]
[1749421553975,7.79293611,2522.2,2522.0,3.96508275]
[1749421554178,6.873,2522.2,2522.0,3.96508275]
[1749421554335,0.9199731,2522.1,2521.9,3.96525578]
[1749421554541,0.92096163,2522.0,2521.9,3.96525578]
[1749421554742,0.92096163,2522.0,2521.7,3.96546328]
[1749421555048,7.09278859,2522.2,2521.7,3.96546328]
[1749421555262,0.92095551,2522.1,2521.7,3.96546328]
[1749421555469,0.92095551,2522.0,2521.7,3.96544377]
[1749421555690,0.92095551,2521.9,2521.8,3.96542152]
[1749421556315,0.7,2522.1,2521.6,8.23648699]
[1749421556514,0.92203863,2522.0,2521.8,4.77685507]
[1749421556717,6.863,2522.1,2521.9,3.96526428]
[1749421557015,0.92327667,2522.0,2521.9,3.96526428]
[1749421557517,0.92327667,2522.0,2521.8,4.7768383]
[1749421557819,0.92327667,2521.9,2521.8,4.7768383]
[1749421558517,2.07395245,2521.9,2521.8,4.7768383]
[1749421559122,2.08392901,2521.9,2521.8,4.7768383]
[1749421559546,0.92619067,2521.9,2521.8,4.7768383]
[1749421560209,2.08608014,2521.9,2521.8,4.7768383]
[1749421560715,2.46042505,2521.9,2521.6,9.00328699]
[1749421560917,1.16231376,2521.7,2521.2,0.8122]
[1749421561119,1.16231376,2521.7,2521.2,4.7784446]
[1749421561120,1.16222094,2521.3,2521.2,4.7784446]
[1749421561299,0.92619067,2521.3,2521.0,8.23648699]
[1749421561493,1.16208623,2521.1,2521.0,3.96657883]
[1749421561694,0.92619067,2521.1,2521.0,19.96657883]
[1749421562434,0.92619067,2521.1,2520.9,3.96675763]
[1749421562733,0.92619067,2521.0,2520.9,19.96670472]
[1749421562919,3.12933255,2521.5,2521.4,3.9660506]
[1749421563118,3.91553998,2521.8,2521.5,19.96589331]
[1749421563119,3.12933255,2521.8,2521.5,19.96589331]
[1749421563318,6.847,2522.1,2521.5,19.96589331]
[1749421563319,1.17061911,2521.6,2521.5,19.96589331]
[1749421565611,1.17061911,2521.6,2521.5,23.26395394]
[1749421567446,1.17061911,2521.6,2521.5,19.96589331]